bitfinex/quotes_ETHUSD_20240924
["timestamp","ask_amount","ask_price","bid_price","bid_amount"]
[1727175830326,9.9462732,2647.4,2647.3,0.0382692]
[1727175831646,13.06746135,2647.4,2647.3,0.0382692]
[1727175832060,9.9462732,2647.4,2647.3,0.0382692]
[1727175833071,3.77665,2647.9,2647.3,0.0382692]
[1727175833281,3.77686,2647.7,2647.3,0.0382692]
[1727175833947,7.55451,2647.5,2647.3,0.0382692]
[1727175834149,3.77729,2647.4,2647.3,0.0382692]
[1727175834428,3.77724,2647.5,2647.3,0.0382692]
[1727175834562,3.77723,2647.5,2647.3,0.0382692]
[1727175834750,3.77723,2647.5,2646.5,3.77844]
[1727175834751,3.0,2647.1,2646.5,3.77844]
[1727175834948,0.7652,2647.2,2646.3,3.77879]
[1727175834949,3.77809,2646.9,2646.3,3.77874]
[1727175835145,3.77809,2646.9,2646.3,7.55752]
[1727175835460,3.0,2647.0,2646.5,3.77849]
[1727175835874,3.77822,2646.8,2646.2,0.7585]
[1727175836073,4.156102,2646.7,2646.2,0.7585]
[1727175836279,5.471302,2646.7,2645.9,0.7585]
[1727175836468,5.471302,2646.7,2646.6,0.0266252]
[1727175836969,0.377822,2646.7,2646.6,0.0266252]
[1727175837187,4.156102,2646.7,2646.6,0.0266252]
[1727175837388,0.377822,2646.7,2646.6,0.0266252]
[1727175837891,0.927822,2646.7,2646.6,0.0266252]
[1727175838076,4.706102,2646.7,2646.6,0.0266252]
[1727175838600,4.156102,2646.7,2646.6,0.0266252]
[1727175839068,4.706102,2646.7,2646.6,0.0266252]
[1727175839654,8.471302,2646.7,2646.6,0.0266252]
[1727175842770,5.471302,2646.7,2646.6,0.0266252]
[1727175842973,4.706102,2646.7,2646.6,0.0266252]
[1727175844098,0.377822,2646.7,2646.6,0.0266252]
[1727175844587,0.03704,2647.0,2646.7,3.77825]
[1727175844761,0.03704,2647.0,2646.6,4.5931652]
[1727175845758,3.81492,2647.0,2646.6,0.8148252]
[1727175846502,0.03704,2647.0,2646.6,4.5932352]
[1727175847271,3.81492,2647.0,2646.6,4.5932352]
[1727175847471,3.77788,2647.0,2646.6,4.5932352]
[1727175847673,3.77775,2647.1,2646.6,4.5932352]
[1727175847904,4.914257,2647.1,2646.6,4.5932352]
[1727175848399,3.0,2647.2,2646.8,3.77805]
[1727175848604,3.77752,2647.3,2646.8,3.8046752]
[1727175848777,3.77752,2647.3,2646.8,7.5827252]
[1727175848959,3.77752,2647.3,2646.8,3.8046752]
[1727175849161,3.77767,2647.2,2646.8,0.0266252]
[1727175849686,3.7778,2647.1,2646.8,0.0266252]
[1727175850383,3.77779,2647.1,2646.8,0.0266252]
[1727175850584,3.77786,2647.0,2646.8,0.0266252]
[1727175850782,0.42819463,2647.1,2646.8,0.0266252]
[1727175850994,3.77735,2647.4,2646.9,3.77793]
[1727175851196,3.0,2647.3,2646.8,0.0266252]
[1727175851483,4.15851,2647.3,2646.8,0.0266252]
[1727175851820,3.7776,2647.2,2646.8,0.0266252]
[1727175852275,4.15851,2647.3,2646.8,0.0266252]
[1727175852479,3.38098,2647.3,2646.9,3.77796]
[1727175852680,3.77724,2647.5,2647.0,0.7882]
[1727175852681,6.77721,2647.5,2647.0,0.7882]
[1727175852941,6.77721,2647.5,2647.0,4.56602]
[1727175853142,3.77752,2647.3,2647.0,0.7882]
[1727175853348,3.77752,2647.3,2646.8,3.8046952]
[1727175853498,4.58732,2647.3,2646.8,3.8046952]
[1727175853929,1.055421,2647.4,2647.0,3.77786]
[1727175854128,4.5869,2647.6,2646.9,3.77788]
[1727175854303,3.77724,2647.5,2646.9,3.77788]
[1727175854502,4.613654,2647.5,2647.0,3.77783]
[1727175854828,0.836414,2647.5,2646.9,3.77788]
[1727175855038,3.77729,2647.4,2646.9,7.55579]
[1727175855329,3.77729,2647.4,2646.9,3.74188]
[1727175855330,4.6973504,2647.4,2646.9,3.74188]
[1727175855733,4.6973504,2647.4,2646.9,3.77799]
[1727175855933,3.77753,2647.3,2646.8,3.8047652]
[1727175856233,4.62501804,2647.3,2646.8,3.8047652]
[1727175856804,0.84748804,2647.3,2646.9,3.77799]
[1727175857019,3.77729,2647.4,2646.9,3.77791]
[1727175857227,3.77729,2647.4,2646.9,7.55583]
[1727175857542,3.77729,2647.4,2646.9,3.77791]
[1727175858927,7.55468,2647.4,2646.9,3.77791]
[1727175859139,0.755468,2647.3,2646.9,3.77791]
[1727175859542,3.77729,2647.4,2646.9,3.77791]
[1727175859951,3.77729,2647.4,2646.9,7.55582]
[1727175860153,3.77729,2647.4,2647.0,3.77785]
[1727175861068,3.77729,2647.4,2646.9,3.77799]
[1727175861269,4.613708,2647.4,2646.9,3.77799]
[1727175861429,4.613708,2647.4,2646.9,7.55592]
[1727175861930,4.613708,2647.4,2646.9,3.77793]
[1727175862133,4.613708,2647.4,2647.0,3.77785]
[1727175862829,4.613708,2647.4,2646.9,3.77793]
[1727175863162,4.5869,2647.6,2647.1,3.77759]
[1727175863316,4.5869,2647.6,2647.1,7.55523]
[1727175863519,7.56085135,2647.8,2647.1,3.77763]
[1727175863520,3.77689,2647.7,2647.1,3.77763]
[1727175863719,3.77689,2647.7,2647.2,3.77749]
[1727175863720,4.65077141,2647.7,2647.2,3.77749]
[1727175864840,5.43481276,2647.7,2647.2,3.77749]
[1727175865040,4.65077141,2647.7,2647.3,3.77742]
[1727175865466,5.43481276,2647.7,2647.3,3.77742]
[1727175865826,0.87388141,2647.7,2647.4,3.77721]
[1727175866029,4.56076135,2647.8,2647.4,3.77721]
[1727175866669,0.78404135,2647.8,2647.4,3.77721]
[1727175866864,0.78404135,2647.8,2647.4,4.56541]
[1727175867227,4.56076135,2647.8,2647.4,4.56546]
[1727175867474,0.78404135,2647.8,2647.4,4.56546]
[1727175868326,0.78404135,2647.7,2647.4,4.56546]
[1727175868841,0.78404135,2647.7,2647.5,3.77706]
[1727175869039,0.78404135,2647.8,2647.4,0.7882]
[1727175869340,0.78404135,2647.7,2647.4,4.5654]
[1727175870462,4.56108135,2647.6,2647.2,3.77756]
[1727175870964,0.78404135,2647.5,2647.2,3.77756]
[1727175871170,0.78404135,2647.5,2647.1,4.52981]
[1727175871340,0.78404135,2647.5,2647.1,0.7521]
[1727175871341,0.78404135,2647.4,2647.1,0.7521]
[1727175871543,0.78404135,2647.3,2647.0,3.77777]
[1727175872389,0.78404135,2647.3,2646.9,0.7521]
[1727175872390,0.78404135,2647.2,2646.9,0.7521]
[1727175872552,0.78404135,2647.2,2646.9,4.53007]
[1727175873071,0.78404135,2647.2,2647.0,3.77781]
[1727175873256,0.78404135,2647.1,2646.9,0.7521]
[1727175873590,4.95546274,2647.3,2646.8,0.0266252]
[1727175873591,4.56190135,2647.0,2646.8,0.0266252]
[1727175873794,5.41215288,2646.9,2646.8,0.0266252]
[1727175874152,4.23419014,2646.9,2646.8,0.0266252]
[1727175874554,5.41605795,2646.9,2646.8,0.0266252]
[1727175874754,1.18190915,2646.9,2646.8,0.0266252]
[1727175876179,0.78797268,2647.1,2646.8,0.7787252]
[1727175876499,0.78797268,2647.2,2647.1,3.77771]
[1727175878170,0.78797268,2647.2,2647.0,3.77784]
[1727175881987,0.78797268,2647.2,2647.0,3.77779]
[1727175882192,0.78797268,2647.2,2647.1,3.77771]
[1727175885411,1.5706177,2647.5,2647.3,3.77743]
[1727175885412,0.78833924,2647.4,2647.3,3.77743]
[1727175887335,0.78833924,2647.5,2647.2,3.77755]
[1727175887513,0.78833924,2647.5,2647.4,3.77729]
[1727175887514,1.18190915,2647.5,2647.4,3.77729]
[1727175887716,1.18190915,2647.5,2646.8,3.8046852]
[1727175887717,3.77744,2647.3,2646.8,3.8046852]
[1727175887942,0.78853841,2647.0,2646.8,0.0266252]
[1727175888155,4.96080761,2646.9,2646.8,0.0266252]
[1727175888429,5.35507682,2646.9,2646.8,0.0266252]
[1727175888628,6.16135682,2647.0,2646.8,0.0266252]
[1727175889388,1.57707682,2646.9,2646.8,0.0266252]
[1727175893984,5.75059886,2646.9,2646.8,0.0266252]
[1727175894191,8.1344,2646.9,2646.8,0.0266252]
[1727175894439,10.50151863,2646.9,2646.8,0.0266252]
[1727175895210,8.1344,2646.9,2646.8,0.0266252]
[1727175895914,7.5844,2646.9,2646.8,0.0266252]
[1727175896121,8.95733986,2646.9,2646.8,0.0266252]
[1727175896652,8.95633986,2646.9,2646.8,0.0266252]
[1727175896951,8.95633986,2646.9,2646.0,3.77927]
[1727175896952,7.54645849,2646.9,2646.0,3.77927]
[1727175897152,0.78843296,2646.3,2646.0,3.812555]
[1727175897448,0.78843296,2646.4,2646.1,0.46494937]
[1727175898713,0.78843296,2646.3,2646.0,0.033285]
[1727175899227,4.56730296,2646.3,2646.0,0.033285]
[1727175899617,4.56755296,2646.2,2646.0,0.033285]
[1727175900022,0.78843296,2646.1,2646.0,0.033285]
[1727175900521,4.96178945,2646.1,2646.0,0.033285]
[1727175900726,5.35600593,2646.1,2646.0,0.033285]
[1727175900942,3.77914,2646.1,2646.0,0.033285]
[1727175901317,1.1810133,2646.1,2646.0,0.033285]
[1727175901723,4.9601533,2646.1,2646.0,0.033285]
[1727175902047,3.77914,2646.1,2646.0,0.033285]
[1727175902259,4.56620352,2646.1,2646.0,0.033285]
[1727175902611,0.78706352,2646.1,2646.0,0.033285]
[1727175902858,4.56620352,2646.1,2646.0,0.033285]
[1727175903214,0.78706352,2646.1,2646.0,0.033285]
[1727175903550,5.35567593,2646.4,2646.1,3.77914]
[1727175903551,0.78706352,2646.4,2646.1,3.77914]
[1727175903735,0.78706352,2646.4,2646.0,1.17415637]
[1727175904056,0.78706352,2646.4,2646.0,4.95337637]
[1727175904405,0.78706352,2646.4,2646.0,4.95334637]
[1727175904612,4.56571352,2646.5,2646.1,3.77914]
[1727175905024,4.56571352,2646.5,2646.0,4.95334637]
[1727175905220,3.77874,2646.4,2646.1,0.033285]
[1727175905752,4.56565352,2646.5,2646.1,0.033285]
[1727175905954,4.56549352,2646.6,2646.1,4.68940051]
[1727175907249,3.77859,2646.5,2646.1,4.68940051]
[1727175907436,4.56549352,2646.6,2646.1,4.68940051]
[1727175907825,4.56549352,2646.6,2646.2,0.47288463]
[1727175908031,4.56549352,2646.6,2646.2,0.50616963]
[1727175909885,3.77867,2646.5,2646.2,0.033285]
[1727175910540,3.77873,2646.4,2646.2,0.033285]
[1727175911384,3.77872,2646.4,2646.2,0.033285]
[1727175912148,3.77886,2646.3,2646.2,0.033285]
[1727175912377,4.9598733,2646.3,2646.2,0.033285]
[1727175912563,6.07383922,2646.3,2646.2,0.033285]
[1727175913151,5.67852407,2646.3,2646.2,0.033285]
[1727175913448,4.89282592,2646.3,2646.2,0.033285]
[1727175914072,6.07383922,2646.3,2646.2,0.033285]
[1727175914257,4.89282592,2646.3,2646.2,0.033285]
[1727175914591,0.78562561,2646.3,2646.2,0.033285]
[1727175914799,0.78562561,2646.5,2646.4,3.77871]
[1727175915005,0.78562561,2646.8,2646.4,3.77871]
[1727175915161,0.78562561,2646.8,2646.4,3.811995]
[1727175915348,0.78562561,2646.8,2646.4,4.65420528]
[1727175915549,4.56384561,2646.8,2646.4,0.87549528]
[1727175915747,0.78562561,2646.8,2646.4,4.65411528]
[1727175915951,0.78562561,2646.8,2646.4,0.87549528]
[1727175916249,0.78562561,2646.8,2646.4,4.65419528]
[1727175917094,0.78562561,2646.8,2646.4,4.60419528]
[1727175917310,5.7832233,2646.9,2646.4,4.60419528]
[1727175917311,0.78562561,2646.7,2646.4,4.60419528]
[1727175917605,0.78562561,2646.7,2646.4,3.77871]
[1727175917809,4.56383561,2646.8,2646.4,3.77871]
[1727175918017,0.78562561,2646.7,2646.1,3.77903]
[1727175918316,3.77887,2646.3,2646.0,0.7835]
[1727175918611,3.77883,2646.4,2646.0,0.7835]
[1727175918912,3.77888,2646.3,2646.0,0.7835]
[1727175919765,0.78562561,2646.4,2646.0,0.7835]
[1727175920010,4.56441561,2646.4,2646.0,0.7835]
[1727175921683,3.77879,2646.4,2646.0,0.7835]
[1727175921878,4.56441561,2646.4,2646.0,4.56277]
[1727175922106,4.56441561,2646.4,2646.0,0.7835]
[1727175922599,0.78562561,2646.4,2646.0,0.7835]
[1727175922905,0.78562561,2646.4,2646.0,4.5627]
[1727175924009,4.9595933,2646.5,2646.2,3.77899]
[1727175924010,0.78562561,2646.5,2646.2,3.77899]
[1727175924509,0.78562561,2646.5,2646.3,3.77885]
[1727175924943,0.78562561,2646.7,2646.5,3.77857]
[1727175925225,0.78562561,2646.9,2646.8,0.7835]
[1727175925577,0.78562561,2647.0,2646.8,4.56164]
[1727175925779,1.1810133,2647.1,2646.8,4.56164]
[1727175925780,0.78562561,2647.1,2646.8,4.56164]
[1727175926018,0.78562561,2647.1,2646.8,7.68282815]
[1727175926337,0.78562561,2647.3,2646.9,3.77791]
[1727175926486,0.78562561,2647.2,2647.0,3.77784]
[1727175926909,0.78562561,2647.2,2647.0,3.77775]
[1727175927095,0.78562561,2647.3,2647.0,3.77786]
[1727175927316,0.78562561,2647.3,2646.9,3.77799]
[1727175928477,0.78562561,2647.3,2646.9,3.85353919]
[1727175928614,0.78562561,2647.3,2646.9,3.77799]
[1727175929385,3.778,2646.9,2646.4,3.77864]
[1727175929604,4.56362561,2646.9,2646.4,3.77864]
[1727175929883,0.78562561,2646.9,2646.4,3.77864]
[1727175930099,0.78562561,2647.0,2646.7,3.77821]
[1727175930287,0.78562561,2647.0,2646.8,3.77814]
[1727175930509,0.78562561,2647.0,2646.7,0.8327]
[1727175930709,0.78562561,2647.1,2646.7,4.61098]
[1727175930889,0.78562561,2647.1,2646.7,4.61091]
[1727175931490,0.78562561,2647.1,2646.8,3.77812]
[1727175932423,0.78562561,2647.2,2646.8,3.77812]
[1727175932634,0.78562561,2647.1,2646.8,3.77812]
[1727175932837,0.78562561,2647.2,2647.0,3.77786]
[1727175933331,0.78562561,2647.2,2647.1,3.77771]
[1727175933638,1.57686593,2647.5,2647.1,3.77771]
[1727175933639,0.78562561,2647.5,2647.1,0.8327]
[1727175933836,0.78562561,2647.6,2647.4,3.77721]
[1727175934023,0.78562561,2647.7,2647.3,3.7773]
[1727175935687,4.56249561,2647.7,2647.3,3.77742]
[1727175936222,3.77687,2647.7,2647.3,3.77742]
[1727175936621,4.56235561,2647.8,2647.3,3.77742]
[1727175936991,4.56235561,2647.8,2647.3,3.77735]
[1727175937311,0.78562561,2647.8,2647.4,4.60993]
[1727175937492,0.78562561,2647.9,2647.5,3.77706]
[1727175937698,0.78562561,2647.9,2647.6,0.07553078]
[1727175938010,0.78562561,2648.0,2647.6,3.85251078]
[1727175938221,0.78562561,2648.0,2647.5,0.07552865]
[1727175938542,0.78562561,2648.0,2647.5,3.77705]
[1727175938839,0.78562561,2648.0,2647.7,3.77685]
[1727175939136,1.1810133,2648.2,2647.8,0.8327]
[1727175939137,0.78562561,2648.2,2647.8,0.8327]
[1727175939332,4.56183561,2648.2,2647.8,0.8327]
[1727175939489,3.77621,2648.2,2647.8,0.8327]
[1727175940307,0.78562561,2648.3,2647.8,0.8327]
[1727175940534,4.56173561,2648.3,2647.8,4.60936]
[1727175941026,3.77611,2648.3,2647.8,4.60936]
[1727175941405,5.37209561,2648.4,2647.9,3.77657]
[1727175941607,5.37208561,2648.4,2647.9,3.77657]
[1727175942095,5.37208561,2648.4,2647.9,7.55307]
[1727175942096,3.77596,2648.4,2647.9,7.55307]
[1727175942430,3.77596,2648.4,2647.9,3.7765]
[1727175943543,3.77596,2648.4,2647.9,3.77648]
[1727175943724,0.78562561,2648.5,2648.1,3.77627]
[1727175943725,3.77573,2648.5,2648.1,3.77627]
[1727175944335,3.77573,2648.5,2648.0,3.77643]
[1727175944842,4.58617,2648.6,2648.1,3.77628]
[1727175944998,6.77544,2648.7,2648.3,0.8327]
[1727175945197,5.37151561,2648.8,2648.4,0.07551214]
[1727175945198,3.77539,2648.8,2648.4,0.07551214]
[1727175945399,5.40926431,2649.0,2648.4,3.77583]
[1727175945600,3.77515,2648.9,2648.4,3.77583]
[1727175945845,3.7753,2648.8,2648.4,0.07550414]
[1727175946008,3.77515,2648.9,2648.3,0.90820501]
[1727175946207,3.7753,2648.8,2648.3,4.68418501]
[1727175947026,3.77515,2648.9,2648.3,4.68418501]
[1727175947248,3.77544,2648.7,2648.3,4.60868]
[1727175947430,3.77515,2648.9,2648.3,4.60868]
[1727175947956,3.7754,2648.8,2648.3,4.60868]
[1727175948246,3.77566,2648.6,2648.1,3.77617]
[1727175948456,3.77559,2648.6,2648.1,4.59497]
[1727175949207,3.77559,2648.6,2648.1,8.37119]
[1727175949457,1.46855816,2649.0,2648.1,8.37119]
[1727175949458,1.46855816,2649.0,2648.1,4.59497]
[1727175949751,3.77565,2648.6,2648.1,4.59497]
[1727175950111,7.5513,2648.6,2648.1,4.59497]
[1727175950449,3.77573,2648.5,2648.1,4.59507]
[1727175950987,7.55134,2648.6,2648.1,4.59507]
[1727175951253,7.55133,2648.6,2648.1,4.59507]
[1727175951551,3.77588,2648.4,2648.1,0.8188]
[1727175951712,8.32464,2648.6,2648.1,0.8188]
[1727175951915,3.77581,2648.5,2648.1,0.8188]
[1727175953835,3.776,2648.3,2648.1,0.8188]
[1727175954006,3.776,2648.3,2647.8,0.8188]
[1727175954007,3.77614,2648.2,2647.8,0.8188]
[1727175954210,3.776,2648.3,2647.8,4.59539]
[1727175954864,3.776,2648.3,2647.8,0.8188]
[1727175955063,3.77587,2648.4,2647.9,3.7765]
[1727175955968,3.77579,2648.5,2647.9,3.7765]
[1727175956265,3.77602,2648.3,2647.9,3.7765]
[1727175957029,3.77586,2648.4,2647.9,3.77649]
[1727175957457,3.77607,2648.3,2647.8,4.5955]
[1727175957944,3.77607,2648.3,2647.9,3.77654]
[1727175958338,3.77582,2648.5,2647.9,3.77654]
[1727175958657,3.77587,2648.4,2647.9,3.77654]
[1727175959163,3.77582,2648.5,2648.0,3.77634]
[1727175959373,3.7759,2648.4,2648.0,3.77634]
[1727175959577,0.82366431,2649.0,2648.3,0.8188]
[1727175959777,3.77537,2648.8,2648.4,4.31081748]
[1727175959984,3.77537,2648.8,2648.4,3.77582]
[1727175960168,3.77537,2648.8,2648.4,3.85132475]
[1727175960559,0.7733,2648.9,2648.3,0.89430476]
[1727175960769,3.77547,2648.7,2648.3,0.8188]
[1727175962391,3.7754,2648.8,2648.3,0.8188]
[1727175962593,7.55129,2648.6,2648.3,0.8188]
[1727175962801,3.77559,2648.6,2648.1,4.57068]
[1727175963272,7.55126,2648.6,2648.1,4.57068]
[1727175963467,3.77559,2648.6,2648.1,4.57068]
[1727175963806,3.77577,2648.5,2648.1,0.7944]
[1727175963973,3.77587,2648.4,2648.1,0.7944]
[1727175964292,3.77577,2648.5,2648.1,0.7944]
[1727175964497,7.55163,2648.5,2648.1,0.7944]
[1727175965057,3.77577,2648.5,2648.1,0.7944]
[1727175965299,7.5516,2648.5,2648.1,0.7944]
[1727175965808,3.77577,2648.5,2648.1,0.7944]
[1727175966181,7.5516,2648.5,2648.1,0.7944]
[1727175966583,3.77596,2648.4,2648.1,0.7944]
[1727175966897,3.77607,2648.3,2647.9,0.7944]
[1727175967399,3.77607,2648.3,2647.9,4.57095]
[1727175967962,3.77587,2648.4,2648.0,3.77642]
[1727175968466,3.77587,2648.4,2647.9,4.57096]
[1727175968694,3.77604,2648.3,2647.9,4.57096]
[1727175969587,3.77587,2648.4,2647.9,8.3474]
[1727175970304,3.77587,2648.4,2647.9,4.57084]
[1727175970508,3.77574,2648.5,2647.9,5.027924]
[1727175970665,2.06056048,2648.8,2648.0,0.07551831]
[1727175971007,2.06056048,2648.8,2647.9,0.7944]
[1727175971008,3.77577,2648.5,2647.9,0.7944]
[1727175971157,3.77577,2648.5,2647.2,3.0]
[1727175971158,3.77624,2648.2,2647.5,0.7944]
[1727175971359,4.59274,2648.0,2647.5,0.7944]
[1727175971789,4.56220561,2647.9,2647.5,0.7944]
[1727175971972,3.77658,2647.9,2647.5,0.7944]
[1727175972323,5.37836561,2648.0,2647.5,4.57148]
[1727175973186,0.78562561,2647.9,2647.5,0.7944]
[1727175973571,4.56226561,2647.9,2647.5,0.7944]
[1727175973725,3.77678,2647.8,2647.3,4.57176]
[1727175974423,4.56220561,2647.9,2647.5,3.77714]
[1727175974808,3.77672,2647.8,2647.4,3.77727]
[1727175975388,3.77687,2647.7,2647.3,4.57182]
[1727175975601,4.56249561,2647.7,2647.3,0.7944]
[1727175975805,3.77701,2647.6,2647.3,0.7944]
[1727175976201,0.78562561,2647.6,2647.3,0.7944]
[1727175976598,0.78562561,2647.6,2647.2,7.55498]
[1727175976798,0.78562561,2647.6,2647.3,3.77738]
[1727175977133,4.56249561,2647.7,2647.3,3.77738]
[1727175977335,0.78562561,2647.6,2647.3,3.77738]
[1727175977638,0.78562561,2647.6,2647.2,7.55499]
[1727175978143,0.78562561,2647.6,2647.2,3.77749]
[1727175978837,0.78562561,2647.6,2647.4,3.77728]
[1727175979037,0.78562561,2647.7,2647.6,3.777]
[1727175979207,0.78562561,2647.8,2647.7,3.77686]
[1727175979535,0.78562561,2647.9,2647.8,3.77672]
[1727175979715,0.78562561,2647.9,2647.7,3.77676]
[1727175979901,0.78562561,2647.9,2647.8,3.77672]
[1727175981010,1.1810133,2648.0,2647.8,3.77672]
[1727175981011,0.78562561,2648.0,2647.9,3.77657]
[1727175982599,0.78562561,2648.1,2648.0,3.77643]
[1727175982999,0.78562561,2648.2,2648.1,3.77629]
[1727175985056,0.78562561,2648.2,2648.0,3.77642]
[1727175985256,0.78562561,2648.1,2647.8,4.5711]
[1727175985559,0.78748958,2648.0,2647.9,3.77649]
[1727175986467,1.1810133,2648.1,2647.9,3.77649]
[1727175986623,0.78749468,2648.0,2647.9,3.77649]
[1727175987468,0.78749468,2648.0,2647.8,3.7767]
[1727175987763,0.78749468,2647.9,2647.8,3.7767]
[1727175988150,0.78749468,2648.0,2647.7,3.77684]
[1727175988592,0.78749468,2648.0,2647.8,3.77672]
[1727175988865,0.78749468,2647.9,2647.8,3.77672]
[1727175989022,0.78749468,2648.0,2647.8,3.77672]
[1727175989433,0.78749468,2647.9,2647.8,3.77672]
[1727175990267,0.78749468,2647.9,2647.7,3.77684]
[1727175990475,0.78749468,2647.8,2647.5,3.77704]
[1727175990627,4.56427468,2647.8,2647.4,4.60067]
[1727175990834,2.15267156,2647.7,2647.4,3.77727]
[1727175991072,1.38987156,2647.7,2647.4,7.55446]
[1727175991383,0.78749468,2647.7,2647.5,3.77706]
[1727175991555,0.78749468,2647.7,2647.5,3.77707]
[1727175992259,0.78749468,2647.7,2647.6,3.777]
[1727175992977,0.78749468,2647.7,2647.5,3.77711]
[1727175993631,0.78749468,2647.8,2647.5,3.77711]
[1727175993837,0.78749468,2647.8,2647.4,3.77719]
[1727175994274,0.78749468,2647.7,2647.4,3.77719]
[1727175995580,0.78749468,2647.6,2647.3,3.77739]
[1727175995748,0.78749468,2647.7,2647.4,3.77725]
[1727175995951,0.78749468,2647.6,2647.4,3.77725]
[1727175996480,0.7628,2647.5,2647.1,3.77757]
[1727175996780,0.7628,2647.5,2647.2,3.77755]
[1727175996781,0.78749468,2647.4,2647.2,3.77755]
[1727175998739,0.78749468,2647.5,2647.2,3.77743]
[1727175998980,0.78749468,2647.6,2647.3,0.8234]
[1727175999181,0.78749468,2647.6,2647.3,4.60078]
[1727176000476,0.78749468,2647.6,2647.4,3.77722]
[1727176000798,1.1810133,2647.7,2647.4,7.55447]
[1727176000799,0.78749468,2647.7,2647.4,7.55447]
[1727176001083,0.78749468,2647.7,2647.4,3.77718]
[1727176001785,0.78749468,2647.6,2647.4,3.77718]
[1727176002258,0.78749468,2647.7,2647.4,3.77718]
[1727176002463,0.78749468,2647.6,2647.4,3.77718]
[1727176003679,0.78749468,2647.7,2647.4,3.77718]
[1727176004087,0.78749468,2647.6,2647.4,3.77718]
[1727176007284,0.78749468,2647.7,2647.4,3.77718]
[1727176008076,0.78749468,2647.6,2647.4,3.77718]
[1727176008256,0.78749468,2647.6,2647.3,0.8234]
[1727176008596,1.60299468,2647.5,2647.2,3.77747]
[1727176008893,0.78749468,2647.4,2647.0,3.81376]
[1727176009267,0.78749468,2647.4,2647.1,3.7777]
[1727176009667,5.38020468,2647.5,2647.1,3.7777]
[1727176010364,0.78749468,2647.4,2647.1,3.7777]
[1727176011699,0.78749468,2647.4,2647.0,3.81376]
[1727176012470,0.78749468,2647.4,2647.1,3.77771]
[1727176013767,4.56478468,2647.4,2647.0,3.81376]
[1727176014409,4.56478468,2647.4,2647.0,3.81376]
[1727176014703,0.78749468,2647.4,2647.0,3.81376]
[1727176014922,0.78749468,2647.4,2647.0,7.59155]
[1727176015072,0.78749468,2647.4,2647.0,3.81376]
[1727176015467,0.78749468,2647.3,2647.0,3.81376]
[1727176016300,0.78749468,2647.2,2647.0,3.81376]
[1727176016501,0.78749468,2647.3,2647.0,3.81376]
[1727176016707,0.78749468,2647.3,2647.1,3.77771]
[1727176017418,0.78749468,2647.3,2647.0,3.81377]
[1727176021188,0.78749468,2647.3,2647.0,0.036]
[1727176025711,0.78749468,2647.3,2647.0,3.8138]
[1727176025912,0.78749468,2647.3,2647.0,0.036]
[1727176026078,0.78749468,2647.3,2647.1,3.77771]
[1727176026476,0.78749468,2647.3,2647.2,3.77757]
[1727176026972,1.1810133,2647.4,2647.2,3.77757]
[1727176026973,0.78749468,2647.4,2647.2,3.77757]
[1727176027484,0.78749468,2647.4,2647.1,7.55536]
[1727176027689,1.61989468,2647.4,2647.2,3.77754]
[1727176029386,0.78749468,2647.3,2647.0,0.1115437]
[1727176029712,0.78749468,2647.3,2647.1,3.77764]
[1727176030119,0.78749468,2647.3,2647.1,7.55528]
[1727176030531,0.78749468,2647.3,2647.2,3.77757]
[1727176031537,0.78749468,2647.4,2647.3,3.77743]
[1727176031705,1.1810133,2647.5,2647.3,3.77743]
[1727176031706,0.78749468,2647.5,2647.4,5.22241265]
[1727176032320,0.78749468,2647.5,2647.3,3.77743]
[1727176032496,0.78749468,2647.4,2647.3,3.77743]
[1727176032700,0.78749468,2647.5,2647.3,3.77743]
[1727176033324,0.78749468,2647.4,2647.3,3.77743]
[1727176033492,0.78749468,2647.5,2647.3,3.77743]
[1727176033696,1.1810133,2647.6,2647.4,3.77729]
[1727176033892,0.78878625,2647.5,2647.4,3.8528273]
[1727176034131,0.78878625,2647.5,2647.4,3.77729]
[1727176034490,0.78878625,2647.5,2647.4,4.62235571]
[1727176034693,0.78878625,2647.6,2647.5,3.77714]
[1727176035328,0.78878625,2647.6,2647.5,4.59754]
[1727176035535,0.78878625,2647.6,2647.5,5.08569943]
[1727176035835,0.78878625,2647.7,2647.6,3.777]
[1727176036243,1.1810133,2647.8,2647.7,3.77686]
[1727176036707,1.1810133,2647.8,2647.6,3.77698]
[1727176036909,1.57686593,2647.9,2647.7,3.77686]
[1727176037318,1.18349468,2647.8,2647.7,3.77686]
[1727176039717,1.13349468,2647.8,2647.7,3.77686]
[1727176041766,1.57686593,2648.0,2647.8,3.7767]
[1727176041971,1.57686593,2648.1,2647.8,3.77665]
[1727176042261,1.57686593,2648.1,2647.1,0.78895202]
[1727176042262,0.78823093,2648.0,2647.1,0.78895202]
[1727176042417,0.78823093,2647.5,2647.1,3.7777]
[1727176042621,3.77708,2647.6,2647.1,3.7777]
[1727176042622,0.78823093,2647.4,2647.1,3.7777]
[1727176042856,0.78823093,2647.3,2647.2,3.77745]
[1727176043354,1.57686593,2647.6,2647.0,0.036]
[1727176043355,0.8324,2647.2,2647.0,0.036]
[1727176043521,1.62033748,2647.2,2647.0,3.81381]
[1727176044136,0.78793748,2647.2,2647.0,3.81381]
[1727176044342,0.78793748,2647.1,2647.0,3.81381]
[1727176044964,0.78793748,2647.1,2647.0,0.036]
[1727176048419,5.85458623,2647.1,2647.0,0.036]
[1727176048625,5.06664875,2647.1,2647.0,0.036]
[1727176048933,7.03558733,2647.1,2647.0,0.036]
[1727176049326,6.64132917,2647.1,2647.0,0.036]
[1727176049526,6.18479042,2647.1,2647.0,0.036]
[1727176049827,6.18476226,2647.1,2647.0,0.036]
[1727176050170,4.61011,2647.1,2647.0,0.036]
[1727176050327,6.18441993,2647.1,2647.0,0.036]
[1727176050857,1.57430993,2647.2,2647.0,0.036]
[1727176051063,1.18083009,2647.2,2647.0,0.036]
[1727176051261,1.18083009,2647.1,2647.0,0.036]
[1727176051421,0.7553,2647.1,2647.0,0.036]
[1727176051620,2.32960993,2647.1,2647.0,0.036]
[1727176052331,6.10731993,2647.1,2647.0,0.036]
[1727176052573,6.50194858,2647.1,2647.0,0.036]